Organisation Name,Organisation Code,Directorate/Service,Service Category Label,Service Code,Supplier Name,Supplier Reference,Payment Date,Transaction Number,Net payment,Purpose of Spend
North West Leicestershire District Council,31UH,Information Technology,ICT Services,ICT,ANS Group Plc,A034753,05/04/2017,1339734,12089.28,Admin Equipment - Maintenance,INV044829
North West Leicestershire District Council,31UH,Information Technology,ICT Services,ICT,Idox Software Ltd,A034157,05/04/2017,1341508,65600.46,Software Licences,106968
North West Leicestershire District Council,31UH,Street Management,Environment Transport,ENOT,Watling JCB Ltd,A032114,05/04/2017,1342011,475,Scheduled Servicing - Parts,13670235
North West Leicestershire District Council,31UH,Planning & Development,Environment Community Planning,ECP,Broadland Guarding Services Ltd,A042635,05/04/2017,1342488,3862.49,Agency Staff,68373
North West Leicestershire District Council,31UH,Street Management,Environment Transport,ENOT,Dennis Eagle Limited,A000522,05/04/2017,1342599,154354,Items To Be Leased,298340
North West Leicestershire District Council,31UH,Housing Repairs,HRA Housing Repairs & Maintenance,HRAHRM,ESPO,A000958,26/04/2017,1342991,747,Gas,4369253
North West Leicestershire District Council,31UH,Housing Repairs,HRA Housing Repairs & Maintenance,HRAHRM,ESPO,A000958,26/04/2017,1342992,1206,Gas,4369431
North West Leicestershire District Council,31UH,Planning & Development,Environment Community Planning,ECP,JNE Marketing Limited,A033056,19/04/2017,1343065,1483.4,CDRP - SAFER FUNDING,44584
North West Leicestershire District Council,31UH,Legal & Democratic,Business Focus Group,BFG,Broxap Limited,A031850,05/04/2017,1343125,1540,Operational Equipment,INV206974
North West Leicestershire District Council,31UH,Housing Repairs,HRA Housing Repairs & Maintenance,HRAHRM,Westbury Industrial Supplies Limited,A009933,12/04/2017,1343157,419.29,Protective Clothing,30213
North West Leicestershire District Council,31UH,Corporate Director,Human Resources,HR,ESPO,A000958,19/04/2017,1343274,262,Stationery,4368837
North West Leicestershire District Council,31UH,Information Technology,ICT Services,ICT,Phoenix Software Limited,A001298,05/04/2017,1343322,761.6,Admin Equipment - Maintenance,OP/I795039
North West Leicestershire District Council,31UH,Housing Repairs,HRA Housing Repairs & Maintenance,HRAHRM,TECSERV UK LIMITED,A028261,05/04/2017,1343418,1950,Door Entry Systems,25272
North West Leicestershire District Council,31UH,Housing,HRA Performance & Business Support,HRAPBS,Michael Page International Recruitment Ltd,A041893,05/04/2017,1343420,1750,Agency Staff,6133434
North West Leicestershire District Council,31UH,Street Management,Environment Transport,ENOT,QPS Plastics Ltd,A001342,12/04/2017,1343560,299.75,Non Scheduled Maintenance - Parts,41619
North West Leicestershire District Council,31UH,Leisure & Culture,Sport & Physical Activity,SPA,Charnwood Borough Council,A010659,05/04/2017,1343668,2212,FAME classes,58690140
North West Leicestershire District Council,31UH,Leisure & Culture,Sport & Physical Activity,SPA,Digital Video Media,A036108,05/04/2017,1343670,695,Local Sports Alliance,20317
North West Leicestershire District Council,31UH,Information Technology,ICT Services,ICT,Insight Uk,A021505,05/04/2017,1343672,300,Administrative Equipment,3316733
North West Leicestershire District Council,31UH,Housing,HRA Performance & Business Support,HRAPBS,Michael Page International Recruitment Ltd,A041893,05/04/2017,1343719,1496,Agency Staff,6137455
North West Leicestershire District Council,31UH,Street Management,Environment Parks,ENOP,Commutaports Ltd,A000389,05/04/2017,1343730,720,Street Furniture,INV35323
North West Leicestershire District Council,31UH,Corporate Director,Human Resources,HR,Spectra Security Limited,A002190,19/04/2017,1343781,410,Door Entry Systems,217/4645
North West Leicestershire District Council,31UH,Housing Repairs,HRA Housing Repairs & Maintenance,HRAHRM,Emperor Scaffolding Limited,A038405,05/04/2017,1343806,375,Hire Of Operational Equipment,11735
North West Leicestershire District Council,31UH,Housing Repairs,HRA Housing Repairs & Maintenance,HRAHRM,Emperor Scaffolding Limited,A038405,05/04/2017,1343808,375,Hire Of Operational Equipment,11737
North West Leicestershire District Council,31UH,Housing Repairs,HRA Housing Repairs & Maintenance,HRAHRM,Emperor Scaffolding Limited,A038405,05/04/2017,1343809,375,Hire Of Operational Equipment,11738
North West Leicestershire District Council,31UH,Housing Repairs,HRA Housing Repairs & Maintenance,HRAHRM,Emperor Scaffolding Limited,A038405,05/04/2017,1343811,350,Hire Of Operational Equipment,11740
North West Leicestershire District Council,31UH,Housing Repairs,HRA Housing Repairs & Maintenance,HRAHRM,Emperor Scaffolding Limited,A038405,05/04/2017,1343812,375,Hire Of Operational Equipment,11741
North West Leicestershire District Council,31UH,Housing Repairs,HRA Housing Repairs & Maintenance,HRAHRM,Emperor Scaffolding Limited,A038405,05/04/2017,1343813,375,Hire Of Operational Equipment,11742
North West Leicestershire District Council,31UH,Housing Repairs,HRA Housing Repairs & Maintenance,HRAHRM,Emperor Scaffolding Limited,A038405,05/04/2017,1343814,375,Hire Of Operational Equipment,11743
North West Leicestershire District Council,31UH,Housing Repairs,HRA Housing Repairs & Maintenance,HRAHRM,Emperor Scaffolding Limited,A038405,05/04/2017,1343815,375,Hire Of Operational Equipment,11745
North West Leicestershire District Council,31UH,Housing Repairs,HRA Housing Repairs & Maintenance,HRAHRM,Emperor Scaffolding Limited,A038405,05/04/2017,1343816,375,Hire Of Operational Equipment,11746
North West Leicestershire District Council,31UH,Housing Repairs,HRA Housing Repairs & Maintenance,HRAHRM,Emperor Scaffolding Limited,A038405,05/04/2017,1343817,375,Hire Of Operational Equipment,11747
North West Leicestershire District Council,31UH,Housing Repairs,HRA Housing Repairs & Maintenance,HRAHRM,Emperor Scaffolding Limited,A038405,05/04/2017,1343818,375,Hire Of Operational Equipment,11748
North West Leicestershire District Council,31UH,Housing Repairs,HRA Housing Repairs & Maintenance,HRAHRM,Emperor Scaffolding Limited,A038405,05/04/2017,1343819,400,Hire Of Operational Equipment,11749
North West Leicestershire District Council,31UH,Housing Repairs,HRA Housing Repairs & Maintenance,HRAHRM,Emperor Scaffolding Limited,A038405,05/04/2017,1343820,375,Hire Of Operational Equipment,11750
North West Leicestershire District Council,31UH,Housing Repairs,HRA Housing Repairs & Maintenance,HRAHRM,Emperor Scaffolding Limited,A038405,05/04/2017,1343821,400,Hire Of Operational Equipment,11751
North West Leicestershire District Council,31UH,Housing Repairs,HRA Housing Repairs & Maintenance,HRAHRM,Emperor Scaffolding Limited,A038405,05/04/2017,1343822,400,Hire Of Operational Equipment,11752
North West Leicestershire District Council,31UH,Housing Repairs,HRA Housing Repairs & Maintenance,HRAHRM,Emperor Scaffolding Limited,A038405,05/04/2017,1343823,275,Hire Of Operational Equipment,11753
North West Leicestershire District Council,31UH,Housing Repairs,HRA Housing Repairs & Maintenance,HRAHRM,Emperor Scaffolding Limited,A038405,05/04/2017,1343824,375,Hire Of Operational Equipment,11754
North West Leicestershire District Council,31UH,Housing Repairs,HRA Housing Repairs & Maintenance,HRAHRM,Emperor Scaffolding Limited,A038405,05/04/2017,1343825,375,Hire Of Operational Equipment,11755
North West Leicestershire District Council,31UH,Housing Repairs,HRA Housing Repairs & Maintenance,HRAHRM,Emperor Scaffolding Limited,A038405,05/04/2017,1343826,400,Hire Of Operational Equipment,11756
North West Leicestershire District Council,31UH,Housing Repairs,HRA Housing Repairs & Maintenance,HRAHRM,Emperor Scaffolding Limited,A038405,05/04/2017,1343827,400,Hire Of Operational Equipment,11757
North West Leicestershire District Council,31UH,Housing Repairs,HRA Housing Repairs & Maintenance,HRAHRM,Emperor Scaffolding Limited,A038405,05/04/2017,1343828,375,Hire Of Operational Equipment,11759
North West Leicestershire District Council,31UH,Housing Repairs,HRA Housing Repairs & Maintenance,HRAHRM,Emperor Scaffolding Limited,A038405,05/04/2017,1343830,375,Hire Of Operational Equipment,11761
North West Leicestershire District Council,31UH,Housing Repairs,HRA Housing Repairs & Maintenance,HRAHRM,Emperor Scaffolding Limited,A038405,05/04/2017,1343832,275,Hire Of Operational Equipment,11763
North West Leicestershire District Council,31UH,Housing Repairs,HRA Housing Repairs & Maintenance,HRAHRM,Emperor Scaffolding Limited,A038405,05/04/2017,1343833,400,Hire Of Operational Equipment,11764
North West Leicestershire District Council,31UH,Housing Repairs,HRA Housing Repairs & Maintenance,HRAHRM,Emperor Scaffolding Limited,A038405,05/04/2017,1343834,550,Hire Of Operational Equipment,11765
North West Leicestershire District Council,31UH,Housing Repairs,HRA Housing Repairs & Maintenance,HRAHRM,Emperor Scaffolding Limited,A038405,05/04/2017,1343835,375,Hire Of Operational Equipment,11734
North West Leicestershire District Council,31UH,Housing Strategy,Community - Housing Strategy,HS,Pinewood Lodge,A032364,05/04/2017,1343836,350,Homelessness Strategy,101
North West Leicestershire District Council,31UH,Housing,HRA Older Persons Service,HRAOPS,Cirrus Communication Systems Ltd,A040630,05/04/2017,1343842,523.5,Alarm System Telephones,PSI383461
North West Leicestershire District Council,31UH,Finance,Revenues,REVS,Capita Business Services Ltd,A002968,05/04/2017,1343844,877.5,Computing,6003531561
North West Leicestershire District Council,31UH,Corporate Director,Human Resources,HR,Nottingham City Council,A041558,05/04/2017,1343845,535.18,Consultants Fees,851769485
North West Leicestershire District Council,31UH,Corporate Director,Human Resources,HR,Premier Employer Solutions Limited,A038606,05/04/2017,1343846,683.51,Child Care Vouchers,14546
North West Leicestershire District Council,31UH,Corporate Director,Human Resources,HR,Fields of Learning,A030537,05/04/2017,1343847,1150,Training Course/Conference,1249
North West Leicestershire District Council,31UH,Leisure & Culture,Leisure & Cult Mangt,LCM,Deana Wildgoose,A042162,05/04/2017,1343849,7071.4,Consultants Fees,2
North West Leicestershire District Council,31UH,Information Technology,ICT Services,ICT,Phoenix Software Limited,A001298,05/04/2017,1343850,9950,Admin Equipment - Maintenance,OP/I796083
North West Leicestershire District Council,31UH,Legal & Democratic,Audit Services,AUDIT,Leicestershire County Council,A000956,05/04/2017,1343851,3500,Agency Staff,25425622
North West Leicestershire District Council,31UH,Planning & Development,Environment Community Planning,ECP,Capstone Consultancy Engineers Ltd,A043933,05/04/2017,1343852,475,External Legal Fees & Advice,1350
North West Leicestershire District Council,31UH,Leisure Centres,Hood Park Leisure Centre,HPLC,Redacted- Personal Data,A043936,05/04/2017,1343863,3021.75,Ticket Sales,JERSEY BOYS
North West Leicestershire District Council,31UH,Street Management,Environment Transport,ENOT,Terberg Matec UK Limited,A001647,05/04/2017,1343864,675.09,Non Scheduled Maintenance - Parts,96340184
North West Leicestershire District Council,31UH,Housing,HRA Housing Management,HRAHM,Redacted- Personal Data,A043938,05/04/2017,1343871,250,Under Occupancy Incentives,INCENTIVE PAYMENT
North West Leicestershire District Council,31UH,Housing,HRA Housing Management,HRAHM,Redacted- Personal Data,A043939,05/04/2017,1343872,250,Under Occupancy Incentives,INCENTIVE PAYMENT
North West Leicestershire District Council,31UH,Housing,HRA Housing Management,HRAHM,Redacted- Personal Data,A043940,05/04/2017,1343873,280,Grants,9 ST MARYS COURT
North West Leicestershire District Council,31UH,Information Technology,ICT Services,ICT,Infosec Cloud Ltd,A039730,05/04/2017,1343876,2970,Admin Equipment - Maintenance,3719
North West Leicestershire District Council,31UH,Corporate Director,Human Resources,HR,Open Text UK Ltd,A043853,05/04/2017,1343879,421.01,Computing,SUK08163941
North West Leicestershire District Council,31UH,Housing,HRA Housing Management,HRAHM,Redacted- Personal Data,A043937,05/04/2017,1343885,250,Under Occupancy Incentives,INCENTIVE PAYMENT
North West Leicestershire District Council,31UH,Planning & Development,Building Control,EBC,Leicestershire County Council,A027423,05/04/2017,1343886,2114,Search Fees - L.C.C.,25726225
North West Leicestershire District Council,31UH,Chief Exec,Chief Executive,CHEX,David Nash ( trading as Koda Consulting),A043827,05/04/2017,1343887,2900,Consultants Fees,3
North West Leicestershire District Council,31UH,Chief Exec,Chief Executive,CHEX,David Nash ( trading as Koda Consulting),A043827,05/04/2017,1343888,2420,Consultants Fees,2
North West Leicestershire District Council,31UH,Corporate Director,Human Resources,HR,Penna,A043757,05/04/2017,1343890,6600,Employee Advertising,543532
North West Leicestershire District Council,31UH,Corporate Director,Human Resources,HR,Penna,A043757,05/04/2017,1343891,1786.38,Employee Advertising,543533
North West Leicestershire District Council,31UH,Corporate Director,Human Resources,HR,Penna,A043757,05/04/2017,1343892,4650,Employee Advertising,542503
North West Leicestershire District Council,31UH,Street Management,Environment Transport,ENOT,Dennis Eagle Limited,A000522,05/04/2017,1343895,320.12,Repairs - Parts,DE11028973
North West Leicestershire District Council,31UH,Leisure & Culture,Leisure & Cult Mangt,LCM,F C Cartons Ltd,A043944,05/04/2017,1343947,11908,Business Support Grant,ENWL-033
North West Leicestershire District Council,31UH,Corporate Director,Human Resources,HR,Inchcape Fleet Solutions,A039405,05/04/2017,1343948,524.59,Items To Be Leased,1922649
North West Leicestershire District Council,31UH,Information Technology,ICT Services,ICT,House on the Hill Software Ltd,A042199,12/04/2017,1343949,5760,Admin Equipment - Maintenance,SI/170406
North West Leicestershire District Council,31UH,Housing Strategy,Community - Housing Strategy,HS,Easy Law Training Ltd,A043909,05/04/2017,1343951,950,Training Course/Conference,F2F/F39
North West Leicestershire District Council,31UH,Property Services,Property Facilities Management,PROPFM,Admiral Cleaning Supplies Ltd,A040930,05/04/2017,1343954,622.17,Consumable Cleaning Materials/Hygiene,202088
North West Leicestershire District Council,31UH,Street Management,Environment Transport,ENOT,The Environment Agency,A039426,05/04/2017,1343958,3923.5,Licences-Environmental,B01179752
North West Leicestershire District Council,31UH,Housing,HRA Performance & Business Support,HRAPBS,Michael Page International Recruitment Ltd,A041893,12/04/2017,1343960,1496,Agency Staff,6138946
North West Leicestershire District Council,31UH,Housing,HRA Performance & Business Support,HRAPBS,Michael Page International Recruitment Ltd,A041893,12/04/2017,1343961,1750,Agency Staff,6138719
North West Leicestershire District Council,31UH,Housing Repairs,HRA Housing Repairs & Maintenance,HRAHRM,Sure Maintenance Ltd,A040460,05/04/2017,1343962,2730,Plumbing & Heating,214510
North West Leicestershire District Council,31UH,Legal & Democratic,Business Focus Group,BFG,Julia Burkin,A043213,05/04/2017,1343965,2136.17,Consultants Fees,13
North West Leicestershire District Council,31UH,Legal & Democratic,Business Focus Group,BFG,Leicestershire County Council,A000950,05/04/2017,1343968,14900,Technical Support,25308778
North West Leicestershire District Council,31UH,Chief Exec,Chief Executive,CHEX,Sable Leigh Consultancy Ltd T/A SLC Rail,A042727,05/04/2017,1343970,8637.12,External Legal Fees & Advice,17/170
North West Leicestershire District Council,31UH,Housing,HRA Housing Management,HRAHM,FRIENDS OF WESTFIELDS,A039705,05/04/2017,1343972,600,Grants,ANNUAL GRANT
North West Leicestershire District Council,31UH,Finance,Financial Planning,FINPLA,Hinckley & Bosworth Borough Council,A000770,12/04/2017,1343980,11320.95,Policy lending,4000950765
North West Leicestershire District Council,31UH,Corporate Director,Human Resources,HR,Health Management Ltd,A038840,12/04/2017,1343981,328.5,Occupational Health Services,160664
North West Leicestershire District Council,31UH,Housing,HRA Housing Management,HRAHM,Shelter,A013263,12/04/2017,1343983,1030,Training Course/Conference,235088
North West Leicestershire District Council,31UH,Legal & Democratic,Business Focus Group,BFG,Broxap Limited,A031850,19/04/2017,1343984,1351,Operational Equipment,INV207970
North West Leicestershire District Council,31UH,Information Technology,ICT Services,ICT,Phoenix Software Limited,A001298,26/04/2017,1343985,1858.92,Contract Payments (Other) Ext,OP/I796382
North West Leicestershire District Council,31UH,Property Services,Property Facilities Management,PROPFM,Gleam Team Services Limited,A000129,12/04/2017,1343990,350,Window Cleaning,12249
North West Leicestershire District Council,31UH,Planning & Development,Environment Community Planning,ECP,Baydale Control Systems Ltd,A042565,12/04/2017,1343992,652.85,Maintenance Contract,46374
North West Leicestershire District Council,31UH,Finance,Exchequer Services,EXCH,Comensura Limited,A036958,12/04/2017,1343996,37734.04,Agency Staff,573817
North West Leicestershire District Council,31UH,Planning & Development,Environment - Development Control,EDC,Euro RSCG People T/A Havas People Ltd,A001395,12/04/2017,1343997,331.31,Advertising,588844
North West Leicestershire District Council,31UH,Planning & Development,Environment - Development Control,EDC,Euro RSCG People T/A Havas People Ltd,A001395,12/04/2017,1343998,892.76,Advertising,589217
North West Leicestershire District Council,31UH,Planning & Development,Environment - Development Control,EDC,Euro RSCG People T/A Havas People Ltd,A001395,12/04/2017,1343999,521.72,Advertising,588988
North West Leicestershire District Council,31UH,Planning & Development,Environment - Development Control,EDC,Euro RSCG People T/A Havas People Ltd,A001395,12/04/2017,1344000,446.65,Advertising,588987
North West Leicestershire District Council,31UH,Planning & Development,Environment - Development Control,EDC,Euro RSCG People T/A Havas People Ltd,A001395,12/04/2017,1344002,664.15,Advertising,588847
North West Leicestershire District Council,31UH,Housing Repairs,HRA Housing Repairs & Maintenance,HRAHRM,Lovell Partnerships Ltd,A039973,12/04/2017,1344004,1594.68,Decent Homes,M490274/NON-DHIP YR5
North West Leicestershire District Council,31UH,Housing Repairs,HRA Housing Repairs & Maintenance,HRAHRM,NICEIC Sales,A026251,12/04/2017,1344021,445,Electrical Certification,85838103
North West Leicestershire District Council,31UH,Environmental Health,Environmental Health & Licensing,EEHL,AM Kennels Ltd,A043947,12/04/2017,1344022,258.32,Baits & Poisons,10575
North West Leicestershire District Council,31UH,Street Management,Environment Transport,ENOT,Anderson Commercials Limited,A033469,12/04/2017,1344023,437,Good Vehicle Plating,42186
North West Leicestershire District Council,31UH,Leisure & Culture,Sport & Physical Activity,SPA,King Edward VII Science & Sport,A029490,12/04/2017,1344026,3139,Local Sports Alliance,KEVII002106
North West Leicestershire District Council,31UH,Leisure & Culture,Sport & Physical Activity,SPA,King Edward VII Science & Sport,A029490,12/04/2017,1344027,13000,Local Sports Alliance,KEVII003045
North West Leicestershire District Council,31UH,Leisure & Culture,Sport & Physical Activity,SPA,King Edward VII Science & Sport,A029490,12/04/2017,1344028,23534,Local Sports Alliance,KEVII003044
North West Leicestershire District Council,31UH,Street Management,Environment Transport,ENOT,AE Industrial & Air Equipment Ltd,A042920,12/04/2017,1344030,505.65,Operational Equipment - Rep & Maint,0036/03603249
North West Leicestershire District Council,31UH,Street Management,Environment Transport,ENOT,Whitespace Work Software Ltd,A041243,12/04/2017,1344032,954.39,Operational Equipment,8026
North West Leicestershire District Council,31UH,Planning & Development,Environment Community Planning,ECP,Broadland Guarding Services Ltd,A042635,12/04/2017,1344034,4258.37,Agency Staff,68507
North West Leicestershire District Council,31UH,Planning & Development,Environment Community Planning,ECP,The National Forest Charitable Trust,A042268,12/04/2017,1344035,5000,Local Sports Alliance,847
North West Leicestershire District Council,31UH,Street Management,Environment Transport,ENOT,Regarde Security Ltd,A013049,12/04/2017,1344036,323,Security Services,5873
North West Leicestershire District Council,31UH,Street Management,Environment - Street Scene,ESS,Phs Group Ltd,A009237,12/04/2017,1344041,509.34,Cleaning & Domestic Equipment,64781326
North West Leicestershire District Council,31UH,Street Management,Environment - Street Scene,ESS,4 Planning Delivers Ltd,A043779,12/04/2017,1344043,976,Agency Staff,17-Jul
North West Leicestershire District Council,31UH,Planning & Development,Building Control,EBC,District Surveyors Association Limited - T/A LABC,A003913,12/04/2017,1344044,1857.16,Subscriptions,11405
North West Leicestershire District Council,31UH,Street Management,Environment - Street Scene,ESS,The National Association of British Market Authorities,A001175,12/04/2017,1344045,636,Subscriptions,17/140
North West Leicestershire District Council,31UH,Street Management,Environment - Street Scene,ESS,Dynamic Development Services Limited,A043778,12/04/2017,1344046,1617,Agency Staff,3-1617
North West Leicestershire District Council,31UH,Street Management,Environment - Street Scene,ESS,Dynamic Development Services Limited,A043778,12/04/2017,1344047,264,Agency Staff,4-1617
North West Leicestershire District Council,31UH,Leisure Centres,Hood Park Leisure Centre,HPLC,Fitness Industry Association Ltd,A031753,12/04/2017,1344048,2518.23,Royalties,UKA_PPL/102519
North West Leicestershire District Council,31UH,Housing Repairs,HRA Housing Repairs & Maintenance,HRAHRM,TECSERV UK LIMITED,A028261,17/05/2017,1344052,347.91,Door Entry Systems,24257
North West Leicestershire District Council,31UH,Property Services,Property Facilities Management,PROPFM,Gleam Team Services Limited,A000129,12/04/2017,1344056,350,Window Cleaning,12219
North West Leicestershire District Council,31UH,Finance,Exchequer Services,EXCH,Selima Limited,A010859,12/04/2017,1344063,8154,Payroll Services,11534
North West Leicestershire District Council,31UH,Housing,HRA Older Persons Service,HRAOPS,Tunstall Healthcare (UK) Limited,A001701,12/04/2017,1344066,19830.1,Alarm Equipment Repairs,30033772
North West Leicestershire District Council,31UH,Street Management,Environment Transport,ENOT,Freight Transport Association,A027981,12/04/2017,1344068,735,Subscriptions,300160103
North West Leicestershire District Council,31UH,Leisure Centres,Hermitage Leisure Centre,HLC,Screwfix Direct,A014681,12/04/2017,1344080,349.97,Operational Equipment,780835077
North West Leicestershire District Council,31UH,Leisure Centres,Hood Park Leisure Centre,HPLC,Peter Dorrell & Company,A027590,12/04/2017,1344082,1381.25,General Repairs,I6954
North West Leicestershire District Council,31UH,Leisure Centres,Hermitage Leisure Centre,HLC,John Merison BMC Ltd,A001092,12/04/2017,1344083,395.42,General Repairs,2839
North West Leicestershire District Council,31UH,Leisure Centres,Hermitage Leisure Centre,HLC,J P Lennard Ltd,A000969,12/04/2017,1344086,435.75,Operational Equipment,843063
North West Leicestershire District Council,31UH,Leisure Centres,Hermitage Leisure Centre,HLC,Shires Event Hire,A036676,12/04/2017,1344087,444.5,Hospitality,551
North West Leicestershire District Council,31UH,Housing,HRA Housing Management,HRAHM,PIMSS Data Systems,A035213,12/04/2017,1344088,2092.73,Computing,16277
North West Leicestershire District Council,31UH,Street Management,Environment General Technician,ENOGT,Jordan Road Surfacing Ltd,A043240,12/04/2017,1344089,625,Routine Ground Maintenance,JRSL/40178
North West Leicestershire District Council,31UH,Property Services,Property Facilities Management,PROPFM,John Merison BMC Ltd,A001092,12/04/2017,1344091,669.6,General Repairs,3444
North West Leicestershire District Council,31UH,Property Services,Property Facilities Management,PROPFM,John Merison BMC Ltd,A001092,12/04/2017,1344092,306.32,General Repairs,3443
North West Leicestershire District Council,31UH,Leisure Centres,Hood Park Leisure Centre,HPLC,Severn Trent Water Limited,A001468,12/04/2017,1344096,1742.61,Water Charges (Metered),406002256
North West Leicestershire District Council,31UH,Property Services,Property Facilities Management,PROPFM,ACE Environmental Engineering Ltd,A040690,12/04/2017,1344097,649.29,General Repairs,138336
North West Leicestershire District Council,31UH,Property Services,Property Facilities Management,PROPFM,ACE Environmental Engineering Ltd,A040690,12/04/2017,1344098,359.34,General Repairs,138333
North West Leicestershire District Council,31UH,Street Management,Environment Transport,ENOT,Berendsen Uk Ltd,A001600,12/04/2017,1344099,280,Protective Clothing,SN2626307
North West Leicestershire District Council,31UH,Legal & Democratic,Legal Services,LDLS,Marrons Shakespeares,A041538,12/04/2017,1344102,3390,External Legal Fees & Advice,586386
North West Leicestershire District Council,31UH,Housing Repairs,HRA Housing Repairs & Maintenance,HRAHRM,Timber-Link Fencing Ltd,A033297,12/04/2017,1344105,450,External Materials,974
North West Leicestershire District Council,31UH,Housing Repairs,HRA Housing Repairs & Maintenance,HRAHRM,Timber-Link Fencing Ltd,A033297,12/04/2017,1344106,1300,External Materials,973
North West Leicestershire District Council,31UH,Housing Repairs,HRA Housing Repairs & Maintenance,HRAHRM,H20 Utilities Ltd,A043865,12/04/2017,1344116,605,Associated Drainage Services,4821/1
North West Leicestershire District Council,31UH,Housing Strategy,Community - Housing Strategy,HS,Thringstone and District Disabled Activity Club,A041105,12/04/2017,1344118,250,Grants,CSE COMM CHEST GRANT
North West Leicestershire District Council,31UH,Housing Repairs,HRA Housing Repairs & Maintenance,HRAHRM,Orbis Property Protection Ltd,A028149,12/04/2017,1344122,325,Decent Homes,B0858185
North West Leicestershire District Council,31UH,Housing Strategy,Community - Housing Strategy,HS,Thringstone House Community Centre,A001665,12/04/2017,1344127,250,Grants,CSE COMM CHEST GRANT
North West Leicestershire District Council,31UH,Leisure & Culture,Cultural Services Arts & Events,CULTEV,Chorus Theatre,A039363,12/04/2017,1344128,250,Grants,CSE GRANT
North West Leicestershire District Council,31UH,Housing Repairs,HRA Housing Repairs & Maintenance,HRAHRM,Alliance Contracting Solutions Ltd,A043325,12/04/2017,1344129,12236.76,Contract Payments (Other) Ext,CT386
North West Leicestershire District Council,31UH,Housing Repairs,HRA Housing Repairs & Maintenance,HRAHRM,Integra Buildings Ltd,A043527,12/04/2017,1344130,4999.9,New Build Work,8911
North West Leicestershire District Council,31UH,Housing Repairs,HRA Housing Repairs & Maintenance,HRAHRM,Integra Buildings Ltd,A043527,12/04/2017,1344131,950,New Build Work,8932
North West Leicestershire District Council,31UH,Housing Repairs,HRA Housing Repairs & Maintenance,HRAHRM,Hays Human Resources,A024378,19/04/2017,1344132,1367.4,Agency Staff,1007287045
North West Leicestershire District Council,31UH,Housing Repairs,HRA Housing Repairs & Maintenance,HRAHRM,Hays Human Resources,A024378,19/04/2017,1344133,1335.6,Agency Staff,1007247514
North West Leicestershire District Council,31UH,Housing Repairs,HRA Housing Repairs & Maintenance,HRAHRM,Aspect Contracts Limited,A041670,12/04/2017,1344134,20622,Contract Payments (Dws) Ext,BM77061
North West Leicestershire District Council,31UH,Property Services,Property Commercial Lettings,PROPCL,John Merison BMC Ltd,A001092,12/04/2017,1344135,282.79,General Repairs,3474
North West Leicestershire District Council,31UH,Communications,Corporate - Customer Services,CS,Neopost Limited,A000079,12/04/2017,1344139,5000,Postages,AN817489
North West Leicestershire District Council,31UH,Information Technology,ICT Services,ICT,Phoenix Software Limited,A001298,26/04/2017,1344146,316.12,Software Licences,OP/I796455
North West Leicestershire District Council,31UH,Property Services,Property Commercial Lettings,PROPCL,Support Span Limited,A036263,12/04/2017,1344148,2458.9,Telephones,19189
North West Leicestershire District Council,31UH,Property Services,Property Commercial Lettings,PROPCL,SC IT Solutions Ltd,A038964,12/04/2017,1344149,460,General Repairs,VAN HIRE
North West Leicestershire District Council,31UH,Finance,Revenues,REVS,Morgan Hunt Public Sector Ltd,A033787,12/04/2017,1344150,888,Agency Staff,970867
North West Leicestershire District Council,31UH,Information Technology,ICT Services,ICT,Cable & Wireless Worldwide,A038473,12/04/2017,1344151,2602.04,Admin Equipment - Maintenance,UK10/042017/5539
North West Leicestershire District Council,31UH,Street Management,Environment - Street Scene,ESS,Elite Industrial Doors Ltd,A042135,12/04/2017,1344154,1100,Operational Equipment,1796
North West Leicestershire District Council,31UH,Planning & Development,Building Control,EBC,Charnwood Borough Council,A010659,19/04/2017,1344156,727.95,Consultants Fees,58690135
North West Leicestershire District Council,31UH,Housing,HRA Performance & Business Support,HRAPBS,Corvid Paygate Ltd,A043549,12/04/2017,1344157,1980,Computing,10610
North West Leicestershire District Council,31UH,Information Technology,ICT Services,ICT,Canon UK Ltd,A040459,12/04/2017,1344158,330,General Operational Equipment,44042183
North West Leicestershire District Council,31UH,Street Management,Environment - Street Scene,ESS,Metric Group Ltd (Sales),A028996,26/04/2017,1344159,252,Subscriptions,C42528
North West Leicestershire District Council,31UH,Housing,HRA Housing Management,HRAHM,Northern Housing Consortium Ltd,A028253,12/04/2017,1344161,5598.47,Alarm Equipment Repairs,53783
North West Leicestershire District Council,31UH,Street Management,Environment Transport,ENOT,QPS Plastics Ltd,A001342,12/04/2017,1344165,299.75,Non Scheduled Maintenance - Parts,41634
North West Leicestershire District Council,31UH,Housing Repairs,HRA Housing Repairs & Maintenance,HRAHRM,Kier Services Maintenance East Ltd,A039980,12/04/2017,1344166,24403.48,Decent Homes,10011338
North West Leicestershire District Council,31UH,Housing Repairs,HRA Housing Repairs & Maintenance,HRAHRM,Kier Services Maintenance East Ltd,A039980,12/04/2017,1344167,9949.33,Decent Homes,10011337
North West Leicestershire District Council,31UH,Housing Strategy,Community - Housing Strategy,HS,Homestart (N.W. Leics),A000780,12/04/2017,1344168,4905,Grants,GRANT PAYMENT Q1
North West Leicestershire District Council,31UH,Housing Repairs,HRA Housing Repairs & Maintenance,HRAHRM,Michael Dyson Associates Ltd,A028431,12/04/2017,1344169,2240,Consultants Fees,3035
North West Leicestershire District Council,31UH,Housing Repairs,HRA Housing Repairs & Maintenance,HRAHRM,Michael Dyson Associates Ltd,A028431,12/04/2017,1344170,1232,Consultants Fees,3034
North West Leicestershire District Council,31UH,Housing Repairs,HRA Housing Repairs & Maintenance,HRAHRM,Michael Dyson Associates Ltd,A028431,12/04/2017,1344171,896,Consultants Fees,3037
North West Leicestershire District Council,31UH,Housing,HRA Housing Management,HRAHM,Redacted- Personal Data,A043950,12/04/2017,1344172,500,Decant Payment,2ND DECANT PAYMENT
North West Leicestershire District Council,31UH,Housing,HRA Housing Management,HRAHM,Leicestershire County Council,A000950,12/04/2017,1344175,5216.25,Contract Cleaning,26009855
North West Leicestershire District Council,31UH,Finance,Exchequer Services,EXCH,Capita Business Services Ltd,A002968,26/04/2017,1344176,8677.42,Computing,60038538068
North West Leicestershire District Council,31UH,Housing,HRA Performance & Business Support,HRAPBS,Alysium Consulting,A043813,12/04/2017,1344177,3135,Computing,410
North West Leicestershire District Council,31UH,Corporate Director,Human Resources,HR,Reed Business Information Ltd,A001375,12/04/2017,1344178,959,Subscriptions,DSINV00131184
North West Leicestershire District Council,31UH,Housing,HRA Performance & Business Support,HRAPBS,Marsh Limited,A042169,26/04/2017,1344179,12311.75,Insurance - Tenants Contributions,6823001
North West Leicestershire District Council,31UH,Finance,Revenues,REVS,Morgan Hunt Public Sector Ltd,A033787,12/04/2017,1344180,888.24,Agency Staff,966134
North West Leicestershire District Council,31UH,Finance,Revenues,REVS,Morgan Hunt Public Sector Ltd,A033787,12/04/2017,1344181,888,Agency Staff,967665
North West Leicestershire District Council,31UH,Leisure Centres,Castle Donington Community College,CDCC,Castle Donington College,A000302,19/04/2017,1344213,325,Computing,CDC16/015
North West Leicestershire District Council,31UH,Housing Repairs,HRA Housing Repairs & Maintenance,HRAHRM,Timber-Link Fencing Ltd,A033297,12/04/2017,1344214,400,External Contractor Payments,982
North West Leicestershire District Council,31UH,Housing Repairs,HRA Housing Repairs & Maintenance,HRAHRM,Timber-Link Fencing Ltd,A033297,12/04/2017,1344215,450,External Contractor Payments,981
North West Leicestershire District Council,31UH,Housing Repairs,HRA Housing Repairs & Maintenance,HRAHRM,Timber-Link Fencing Ltd,A033297,12/04/2017,1344216,850,External Contractor Payments,980
North West Leicestershire District Council,31UH,Housing Repairs,HRA Housing Repairs & Maintenance,HRAHRM,G Purchase Construction Ltd,A032830,12/04/2017,1344219,253.03,Housing repairs,17020022
North West Leicestershire District Council,31UH,Leisure & Culture,Leisure & Cult Mangt,LCM,Ibstock Community College,A000804,12/04/2017,1344237,3750,Swimming Pool Grant,POOL GRANT QTR 1
North West Leicestershire District Council,31UH,Leisure & Culture,Leisure & Cult Mangt,LCM,Friends of Ashby Bath Grounds,A042561,12/04/2017,1344238,500,Grants,GREEN GRANT
North West Leicestershire District Council,31UH,Housing,HRA Housing Management,HRAHM,Lovell Partnerships Ltd,A039973,12/04/2017,1344239,45205.38,Decent Homes,M490274/008
North West Leicestershire District Council,31UH,Housing,HRA Housing Management,HRAHM,Redacted- Personal Data,A043953,12/04/2017,1344240,250,Under Occupancy Incentives,MUTUAL EXCHANGE INCE
North West Leicestershire District Council,31UH,Housing Repairs,HRA Housing Repairs & Maintenance,HRAHRM,Sure Maintenance Ltd,A040460,12/04/2017,1344241,2750,Plumbing & Heating,221925
North West Leicestershire District Council,31UH,Housing Repairs,HRA Housing Repairs & Maintenance,HRAHRM,Sure Maintenance Ltd,A040460,12/04/2017,1344242,1483,Plumbing & Heating,221925/1
North West Leicestershire District Council,31UH,Housing Repairs,HRA Housing Repairs & Maintenance,HRAHRM,Sure Maintenance Ltd,A040460,12/04/2017,1344243,745,Plumbing & Heating,222308
North West Leicestershire District Council,31UH,Housing Repairs,HRA Housing Repairs & Maintenance,HRAHRM,Lovell Partnerships Ltd,A039973,12/04/2017,1344244,1735.54,Decent Homes,3M490274/053
North West Leicestershire District Council,31UH,Housing Repairs,HRA Housing Repairs & Maintenance,HRAHRM,Lovell Partnerships Ltd,A039973,12/04/2017,1344245,4784.04,Decent Homes,3M490274/054
North West Leicestershire District Council,31UH,Housing Repairs,HRA Housing Repairs & Maintenance,HRAHRM,Lovell Partnerships Ltd,A039973,12/04/2017,1344246,4784.04,Decent Homes,3M490274/055
North West Leicestershire District Council,31UH,Housing Repairs,HRA Housing Repairs & Maintenance,HRAHRM,Lovell Partnerships Ltd,A039973,12/04/2017,1344247,514.95,Decent Homes,3M490274/056
North West Leicestershire District Council,31UH,Housing Repairs,HRA Housing Repairs & Maintenance,HRAHRM,Lovell Partnerships Ltd,A039973,12/04/2017,1344248,5095.62,Decent Homes,M490274/051
North West Leicestershire District Council,31UH,Housing Repairs,HRA Housing Repairs & Maintenance,HRAHRM,Lovell Partnerships Ltd,A039973,12/04/2017,1344249,764.12,Decent Homes,M490274/052
North West Leicestershire District Council,31UH,Housing Repairs,HRA Housing Repairs & Maintenance,HRAHRM,Lovell Partnerships Ltd,A039973,12/04/2017,1344250,621.93,Decent Homes,M490274/057
North West Leicestershire District Council,31UH,Housing Repairs,HRA Housing Repairs & Maintenance,HRAHRM,Lovell Partnerships Ltd,A039973,12/04/2017,1344251,621.93,Decent Homes,M490274/058
North West Leicestershire District Council,31UH,Housing Repairs,HRA Housing Repairs & Maintenance,HRAHRM,Lovell Partnerships Ltd,A039973,12/04/2017,1344252,287.04,Decent Homes,M490274/059
North West Leicestershire District Council,31UH,Housing Repairs,HRA Housing Repairs & Maintenance,HRAHRM,Lovell Partnerships Ltd,A039973,12/04/2017,1344253,621.93,Decent Homes,M490274/060
North West Leicestershire District Council,31UH,Housing Repairs,HRA Housing Repairs & Maintenance,HRAHRM,Lovell Partnerships Ltd,A039973,12/04/2017,1344254,287.04,Decent Homes,M490274/061
North West Leicestershire District Council,31UH,Housing Repairs,HRA Housing Repairs & Maintenance,HRAHRM,Lovell Partnerships Ltd,A039973,12/04/2017,1344255,621.93,Decent Homes,M490274/062
North West Leicestershire District Council,31UH,Housing Repairs,HRA Housing Repairs & Maintenance,HRAHRM,Lovell Partnerships Ltd,A039973,12/04/2017,1344256,518.27,Decent Homes,M490274/063
North West Leicestershire District Council,31UH,Housing Repairs,HRA Housing Repairs & Maintenance,HRAHRM,Lovell Partnerships Ltd,A039973,12/04/2017,1344257,518.27,Decent Homes,M490274/064
North West Leicestershire District Council,31UH,Housing Repairs,HRA Housing Repairs & Maintenance,HRAHRM,Lovell Partnerships Ltd,A039973,12/04/2017,1344258,287.04,Decent Homes,M490274/065
North West Leicestershire District Council,31UH,Housing Repairs,HRA Housing Repairs & Maintenance,HRAHRM,Lovell Partnerships Ltd,A039973,12/04/2017,1344259,287.04,Decent Homes,M490274/066
North West Leicestershire District Council,31UH,Housing Repairs,HRA Housing Repairs & Maintenance,HRAHRM,Lovell Partnerships Ltd,A039973,12/04/2017,1344260,287.04,Decent Homes,M490274/067
North West Leicestershire District Council,31UH,Housing Repairs,HRA Housing Repairs & Maintenance,HRAHRM,Lovell Partnerships Ltd,A039973,12/04/2017,1344261,287.04,Decent Homes,M490274/068
North West Leicestershire District Council,31UH,Housing Repairs,HRA Housing Repairs & Maintenance,HRAHRM,Lovell Partnerships Ltd,A039973,12/04/2017,1344262,287.04,Decent Homes,M490274/069
North West Leicestershire District Council,31UH,Housing Repairs,HRA Housing Repairs & Maintenance,HRAHRM,Lovell Partnerships Ltd,A039973,12/04/2017,1344263,287.04,Decent Homes,M490274/070
North West Leicestershire District Council,31UH,Leisure & Culture,Leisure & Cult Mangt,LCM,Connect In,A043823,12/04/2017,1344268,1200,Events Equipment,SI-1964
North West Leicestershire District Council,31UH,Finance,Exchequer Services,EXCH,Corvid Paygate Ltd,A043549,12/04/2017,1344269,1873,Computing,10275
North West Leicestershire District Council,31UH,Finance,Financial Planning,FINPLA,Zurich Municipal,A001835,12/04/2017,1344270,460,Insurances,QLA-10H0830083-70
North West Leicestershire District Council,31UH,Finance,Revenues,REVS,Morgan Hunt Public Sector Ltd,A033787,12/04/2017,1344271,888,Agency Staff,969405
North West Leicestershire District Council,31UH,Legal & Democratic,Legal Services,LDLS,Rowena Meager,A043951,12/04/2017,1344272,962.5,Legal & Professional Services,693816
North West Leicestershire District Council,31UH,Housing,HRA Performance & Business Support,HRAPBS,Taylor Bloxham Ltd,A037241,19/04/2017,1344274,847,Annual Report To Tenants,122878
North West Leicestershire District Council,31UH,Housing,HRA Housing Management,HRAHM,Primrose Hotels Ltd T/A Hermitage Park Hotel,A010779,19/04/2017,1344276,258.35,Homelessness Strategy,56123
North West Leicestershire District Council,31UH,Housing,HRA Housing Management,HRAHM,Primrose Hotels Ltd T/A Hermitage Park Hotel,A010779,19/04/2017,1344277,316.7,Homelessness Strategy,56122
North West Leicestershire District Council,31UH,Street Management,Environment Transport,ENOT,Dennis Eagle Limited,A000522,19/04/2017,1344278,1298.77,Repairs - Parts,DE11029700
North West Leicestershire District Council,31UH,Street Management,Environment Waste Management,ENOWM,Groundsman Tools & Supplies,A030744,19/04/2017,1344280,731.25,General Materials,40336
North West Leicestershire District Council,31UH,Street Management,Environment Transport,ENOT,Terberg Matec UK Limited,A001647,19/04/2017,1344283,1616.35,Non Scheduled Maintenance - Parts,96340464
North West Leicestershire District Council,31UH,Street Management,Environment Transport,ENOT,Ford & Slater Group Ltd,A000625,19/04/2017,1344285,416.26,Transport Costs - Engine Oil,1311395
North West Leicestershire District Council,31UH,Chief Exec,Chief Executive,CHEX,CBRE Ltd,A041437,19/04/2017,1344288,5000,Consultants Fees,50BCD00031420
North West Leicestershire District Council,31UH,Leisure Centres,Hermitage Leisure Centre,HLC,Experian Ltd,A009242,19/04/2017,1344292,714.79,Service Contracts,HEX67000602572
North West Leicestershire District Council,31UH,Leisure Centres,Hermitage Leisure Centre,HLC,Admiral Cleaning Supplies Ltd,A040930,19/04/2017,1344293,286.02,Consumable Cleaning Materials/Hygiene,202163
North West Leicestershire District Council,31UH,Leisure Centres,Hermitage Leisure Centre,HLC,The Sunbed Association,A003533,19/04/2017,1344294,332.5,Service Contracts,100894
North West Leicestershire District Council,31UH,Leisure Centres,Hermitage Leisure Centre,HLC,Fitness Industry Association Ltd,A031753,19/04/2017,1344297,2969.41,Royalties,UKAPPL/102053
North West Leicestershire District Council,31UH,Property Services,Property Facilities Management,PROPFM,Phs Group Ltd,A009237,19/04/2017,1344311,1116.8,Cleaning & Domestic Equipment,64781320
North West Leicestershire District Council,31UH,Planning & Development,Environment Community Planning,ECP,Harborough District Council,A008631,19/04/2017,1344316,10916.47,Contaminated Land Officer,D0009966
North West Leicestershire District Council,31UH,Legal & Democratic,Legal Services,LDLS,Browne Jacobson LLP,A000251,19/04/2017,1344317,426,Legal & Professional Services,350480
North West Leicestershire District Council,31UH,Property Services,Property Commercial Lettings,PROPCL,British Telecommunications Plc,A000233,19/04/2017,1344321,611.61,Telephones,EM17364706
North West Leicestershire District Council,31UH,Information Technology,ICT Services,ICT,Virgin Media Business,A008908,19/04/2017,1344323,3136.58,Admin Equipment - Maintenance,8.53E+11
North West Leicestershire District Council,31UH,Information Technology,ICT Services,ICT,Virgin Media Business,A035373,19/04/2017,1344324,313.53,Computing,263636-123
North West Leicestershire District Council,31UH,Leisure Centres,Hermitage Bar & Catering,HLBC,Snackline Direct Ltd,A042489,19/04/2017,1344327,530.64,Catering Provisions,78916
North West Leicestershire District Council,31UH,Street Management,Environment Waste Management,ENOWM,Leicestershire County Council,A027423,19/04/2017,1344329,7650,Hire Of Operational Equipment,28181565
North West Leicestershire District Council,31UH,Environmental Health,Environmental Health & Licensing,EEHL,Eville And Jones Limited,A033670,19/04/2017,1344330,766.26,Vet Inspection,EJ2734
North West Leicestershire District Council,31UH,Planning & Development,Environment Planning Policy,EPP,GL Hearn,A041191,19/04/2017,1344331,9062.5,Local Development Framework,6155000557
North West Leicestershire District Council,31UH,Planning & Development,Environment Planning Policy,EPP,Heartwood Conferencing Ltd,A041744,19/04/2017,1344332,653.75,Local Development Framework,392
North West Leicestershire District Council,31UH,Planning & Development,Environment Planning Policy,EPP,Carmel Edwards T/A CP Solutions,A043365,19/04/2017,1344333,1300,Local Development Framework,220
North West Leicestershire District Council,31UH,Planning & Development,Environment - Development Control,EDC,Euro RSCG People T/A Havas People Ltd,A001395,19/04/2017,1344336,577.69,Advertising,589399
North West Leicestershire District Council,31UH,Finance,Financial Planning,FINPLA,CIPFA,A027467,19/04/2017,1344339,620,Books & Publications,3124843
North West Leicestershire District Council,31UH,Finance,Financial Planning,FINPLA,CIPFA,A027467,19/04/2017,1344340,1973.75,Books & Publications,3124795
North West Leicestershire District Council,31UH,Street Management,Environment Transport,ENOT,Bandvulc Tyres Ltd,A033268,19/04/2017,1344348,2240,Transport Costs - Tyres,417272
North West Leicestershire District Council,31UH,Street Management,Environment Transport,ENOT,Bandvulc Tyres Ltd,A033268,19/04/2017,1344349,1820,Transport Costs - Tyres,417271
North West Leicestershire District Council,31UH,Information Technology,ICT Services,ICT,Freedom Communications (UK) Ltd,A032826,19/04/2017,1344353,1543.32,Admin Equipment - Maintenance,135966
North West Leicestershire District Council,31UH,Street Management,Environment Transport,ENOT,Certas Energy Uk Ltd,A043448,19/04/2017,1344354,16701.87,Fuel,7920048
North West Leicestershire District Council,31UH,Street Management,Environment Transport,ENOT,Certas Energy Uk Ltd,A043448,19/04/2017,1344355,937.6,Fuel,7920051
North West Leicestershire District Council,31UH,Street Management,Environment Transport,ENOT,Mertrux Ltd,A035291,19/04/2017,1344356,456.68,Non Scheduled Maintenance - Parts,21114233
North West Leicestershire District Council,31UH,Street Management,Environment Waste Management,ENOWM,DLNR CRC Ltd,A026192,19/04/2017,1344361,1850,Hire Of Operational Equipment,000 673
North West Leicestershire District Council,31UH,Street Management,Environment Transport,ENOT,Spaldings (UK) Limited,A001540,19/04/2017,1344366,263.07,Repairs - Parts,SI-2147368
North West Leicestershire District Council,31UH,Street Management,Environment Transport,ENOT,Geesink Norba Limited,A017895,19/04/2017,1344367,425.09,Scheduled Servicing - Parts,90007530
North West Leicestershire District Council,31UH,Housing,HRA Performance & Business Support,HRAPBS,Capita Business Services Ltd,A002968,26/04/2017,1344377,40535,Computing,6003536520
North West Leicestershire District Council,31UH,Communications,Corporate - Communications,CP,Euro RSCG People T/A Havas People Ltd,A001395,19/04/2017,1344381,571.56,Advertising,588845
North West Leicestershire District Council,31UH,Corporate Director,Human Resources,HR,Wider Plan Ltd,A043948,19/04/2017,1344383,6315,Staff benefit Scheme,4038710
North West Leicestershire District Council,31UH,Property Services,Property Commercial Lettings,PROPCL,Charnwood Borough Council,A010659,19/04/2017,1344385,4783,Legal & Professional Services,58728250
North West Leicestershire District Council,31UH,Finance,Exchequer Services,EXCH,ESPO,A000958,18/04/2017,1344387,8002.59,Gas,FEB 17 CONSUMPTION
North West Leicestershire District Council,31UH,Property Services,Property Commercial Lettings,PROPCL,John Merison BMC Ltd,A001092,19/04/2017,1344388,862.96,General Repairs,3482
North West Leicestershire District Council,31UH,Finance,Exchequer Services,EXCH,H M Land Registry,A000713,18/04/2017,1344389,251,Land Registry Searches,PD12 UPTO 28/3 1617
North West Leicestershire District Council,31UH,Street Management,Environment Transport,ENOT,J F Lloyd & Sons,A000991,19/04/2017,1344392,250,Hire Of Operational Equipment,2707
North West Leicestershire District Council,31UH,Finance,Exchequer Services,EXCH,Total Gas & Power,A033385,18/04/2017,1344394,17242.53,Electricity,NWL1 DEC 16 CONSUMPT
North West Leicestershire District Council,31UH,Street Management,Environment Transport,ENOT,Reflec Signs & Graphics Ltd,A025348,19/04/2017,1344398,1219,Repairs - Parts,21053
North West Leicestershire District Council,31UH,Property Services,Property Facilities Management,PROPFM,Siemens Energy Services Ltd,A024546,19/04/2017,1344400,365.9,Electricity,1027443282
North West Leicestershire District Council,31UH,Communications,Corporate - Customer Services,CS,Neopost Limited,A000079,19/04/2017,1344401,5000,Postages,AN817489
North West Leicestershire District Council,31UH,Information Technology,ICT Services,ICT,ACS Systems (UK) Ltd T/a ACS Office Solutions,A043447,19/04/2017,1344403,4056,Admin Equipment - Purchased & Recharged,INV337481
North West Leicestershire District Council,31UH,Information Technology,ICT Services,ICT,Orange Plc,A018592,19/04/2017,1344407,1064.13,Data Transfer,1256057902
North West Leicestershire District Council,31UH,Information Technology,ICT Services,ICT,Orange Plc,A018592,19/04/2017,1344408,2061.16,Mobile Telephones,1256124168
North West Leicestershire District Council,31UH,Street Management,Environment Transport,ENOT,Calor Gas Limited,A032686,19/04/2017,1344412,923.45,Gas,73412364
North West Leicestershire District Council,31UH,Leisure Centres,Castle Donington Community College,CDCC,Elliott Group Limited,A005413,19/04/2017,1344413,522.58,Secure Storage,17071535
North West Leicestershire District Council,31UH,Property Services,Property Commercial Lettings,PROPCL,Secom Plc,A003044,19/04/2017,1344414,2089.15,Alt & Mtce-Fixed Plant,3369453
North West Leicestershire District Council,31UH,Planning & Development,Environment Planning Policy,EPP,DTZ Debenham Tie Leung Ltd,A034251,19/04/2017,1344415,1000,Local Development Framework,2017-04-000003696
North West Leicestershire District Council,31UH,Property Services,Property Commercial Lettings,PROPCL,Phs Group Ltd,A009237,19/04/2017,1344416,491.92,Consumable Cleaning Materials/Hygiene,64781324
North West Leicestershire District Council,31UH,Property Services,Property Commercial Lettings,PROPCL,Urban Planters Leicestershire (limited),A003371,19/04/2017,1344420,552.5,Internal Decorations,8705
North West Leicestershire District Council,31UH,Finance,Exchequer Services,EXCH,Comensura Limited,A036958,19/04/2017,1344425,29276.52,Agency Staff,574083
North West Leicestershire District Council,31UH,Leisure & Culture,Leisure & Cult Mangt,LCM,Woodward Veterinary Practice Ltd,A043961,19/04/2017,1344426,22308,Business Support Grant,ENWL058
North West Leicestershire District Council,31UH,Leisure Centres,Hood Park Bar and Catering,HPBC,Snackline Direct Ltd,A042489,26/04/2017,1344433,408.09,Bar Provisions,78918
North West Leicestershire District Council,31UH,Street Management,Environment Transport,ENOT,Terberg Matec UK Limited,A001647,19/04/2017,1344439,1186.06,Non Scheduled Maintenance - Parts,96340532
North West Leicestershire District Council,31UH,Street Management,Environment Transport,ENOT,DR Baling Wire Manufacturers Ltd,A032890,19/04/2017,1344440,1720,Operational Equipment,114457
North West Leicestershire District Council,31UH,Leisure Centres,Hood Park Leisure Centre,HPLC,John Merison BMC Ltd,A001092,19/04/2017,1344447,681.66,General Repairs,3471
North West Leicestershire District Council,31UH,Leisure Centres,Hermitage Leisure Centre,HLC,Measham Leisure Centre,A027454,19/04/2017,1344457,2162.43,Measham LC Lifestyle DD,DD'S MAR 5TH/20
North West Leicestershire District Council,31UH,Leisure Centres,Hermitage Leisure Centre,HLC,J P Lennard Ltd,A000969,19/04/2017,1344458,542.88,Operational Equipment,844606
North West Leicestershire District Council,31UH,Leisure Centres,Hermitage Leisure Centre,HLC,Newbridge High School,A033936,19/04/2017,1344459,330,Room Hire,5103443
North West Leicestershire District Council,31UH,Leisure Centres,Hermitage Leisure Centre,HLC,Lift & Engineering Services Ltd,A042320,19/04/2017,1344461,899.25,Service Contracts,5125
North West Leicestershire District Council,31UH,Street Management,Environment Parks,ENOP,Rigby Taylor Limited,A001392,26/04/2017,1344462,883,Operational Equipment - Purchases,RSIN0216377
North West Leicestershire District Council,31UH,Street Management,Environment Parks,ENOP,ESPO,A000958,19/04/2017,1344463,322,External Materials,4400220
North West Leicestershire District Council,31UH,Street Management,Environment Transport,ENOT,Ford & Slater Group Ltd,A000625,19/04/2017,1344466,604.2,Vehicle Parts/Maintenance,1311709
North West Leicestershire District Council,31UH,Information Technology,ICT Services,ICT,Idox Software Ltd,A034157,19/04/2017,1344468,2500,Contract Payments (Other) Ext,7015123
North West Leicestershire District Council,31UH,Information Technology,ICT Services,ICT,Idox Software Ltd,A034157,19/04/2017,1344469,16500,Contract Payments (Other) Ext,7015108
North West Leicestershire District Council,31UH,Housing,HRA Housing Management,HRAHM,Redacted- Personal Data,A043962,19/04/2017,1344473,280,Grants,INCENTIVE
North West Leicestershire District Council,31UH,Street Management,Environment Transport,ENOT,Ford Motor Company Ltd,A041004,19/04/2017,1344476,14687.95,Items To Be Leased,4174776
North West Leicestershire District Council,31UH,Street Management,Environment Transport,ENOT,Ford Motor Company Ltd,A041004,19/04/2017,1344477,14687.95,Items To Be Leased,4174775
North West Leicestershire District Council,31UH,Street Management,Environment Transport,ENOT,Ford Motor Company Ltd,A041004,19/04/2017,1344478,14687.95,Items To Be Leased,4174774
North West Leicestershire District Council,31UH,Street Management,Environment Transport,ENOT,Ford Motor Company Ltd,A041004,19/04/2017,1344479,14687.95,Items To Be Leased,4174773
North West Leicestershire District Council,31UH,Street Management,Environment Transport,ENOT,Ford Motor Company Ltd,A041004,19/04/2017,1344480,14687.95,Items To Be Leased,4174772
North West Leicestershire District Council,31UH,Leisure Centres,Hermitage Bar & Catering,HLBC,Snackline Direct Ltd,A042489,19/04/2017,1344485,746.32,Catering Provisions,79175
North West Leicestershire District Council,31UH,Leisure Centres,Hood Park Bar and Catering,HPBC,Britvic Soft Drinks Limited,A000234,19/04/2017,1344486,509.78,Bar Provisions,52766279
North West Leicestershire District Council,31UH,Housing,HRA Housing Management,HRAHM,Redacted- Personal Data,A043963,19/04/2017,1344489,1000,Decant Payment,DECANT PAYMENT
North West Leicestershire District Council,31UH,Leisure Centres,Hood Park Leisure Centre,HPLC,Technogym Uk Limited,A001642,19/04/2017,1344491,349.64,Gym Equipment,17003038
North West Leicestershire District Council,31UH,Finance,Financial Planning,FINPLA,JCB Finance (Leasing) Ltd,A033051,19/04/2017,1344492,300,Transport - Operating Leases,66355
North West Leicestershire District Council,31UH,Information Technology,ICT Services,ICT,Premier Paper Group,A042438,19/04/2017,1344493,697.61,Consumable Materials,8666994
North West Leicestershire District Council,31UH,Street Management,Environment Transport,ENOT,S & B Tyres Limited,A034071,19/04/2017,1344554,256,Transport Costs - Tyres,11681
North West Leicestershire District Council,31UH,Planning & Development,Environment Community Planning,ECP,Solon Security,A035272,19/04/2017,1344557,742.7,Community Safety,SI17003234
North West Leicestershire District Council,31UH,Housing Repairs,HRA Housing Repairs & Maintenance,HRAHRM,Laker BMS Ltd,A031787,19/04/2017,1344569,4757.75,Housing Repairs,IN00058915
North West Leicestershire District Council,31UH,Housing Repairs,HRA Housing Repairs & Maintenance,HRAHRM,Aspect Contracts Limited,A041868,19/04/2017,1344570,538.93,Contract Payments (Dws) Ext,MAN1530I
North West Leicestershire District Council,31UH,Legal & Democratic,Civic Expenses,LDCE,The Association of Electoral Administrators Ltd,A033402,19/04/2017,1344574,370,Training Course/Conference,21058
North West Leicestershire District Council,31UH,Planning & Development,Environment Community Planning,ECP,Stansgate Planning Consultants,A013765,19/04/2017,1344591,4965,External Legal Fees & Advice,16721
North West Leicestershire District Council,31UH,Planning & Development,Environment Community Planning,ECP,GHM Planning Limited,A034296,19/04/2017,1344592,1893.15,External Legal Fees & Advice,NWL03/17
North West Leicestershire District Council,31UH,Planning & Development,Environment - Town Centre/CCTV,ECCTV,British Telecommunications Plc,A000233,19/04/2017,1344594,7396.18,Telephones,20024864
North West Leicestershire District Council,31UH,Finance,Financial Planning,FINPLA,Department for Communities & Local Government,A028518,20/04/2017,1344598,64599,Subsidy Receipts & Repayments,TPP 15/16
North West Leicestershire District Council,31UH,Housing,HRA Housing Management,HRAHM,Redacted- Personal Data,A000133,20/04/2017,1344601,500,Compensation,MISS L C JENNINGS
North West Leicestershire District Council,31UH,Leisure Centres,Hermitage Leisure Centre,HLC,Phs Group Ltd,A009237,20/04/2017,1344603,401.95,Service Contracts,64793040
North West Leicestershire District Council,31UH,Finance,Financial Planning,FINPLA,Northumberland County Council,A043972,20/04/2017,1344605,3000000,Policy lending,DEP 3/4-03/4/20
North West Leicestershire District Council,31UH,Housing,HRA Housing Management,HRAHM,HMCTS,A033955,20/04/2017,1344607,2600,Legal & Professional Services,29580
North West Leicestershire District Council,31UH,Planning & Development,Environment Community Planning,ECP,Baydale Control Systems Ltd,A042565,26/04/2017,1344612,2672.86,Employers Liability Insurance,48453
North West Leicestershire District Council,31UH,Street Management,Environment Parks,ENOP,Glen Farrow Uk Limited,A000672,26/04/2017,1344615,753,Asset Protection,36804
North West Leicestershire District Council,31UH,Housing Strategy,Community - Housing Strategy,HS,Hinckley & Bosworth Borough Council,A042269,26/04/2017,1344621,1099.96,Housing Needs Survey,4000953571
North West Leicestershire District Council,31UH,Street Management,Environment Parks,ENOP,Fleet (Line Markers) Ltd,A030719,26/04/2017,1344630,507.9,Operational Equipment - Purchases,SI174342
North West Leicestershire District Council,31UH,Finance,Financial Planning,FINPLA,Appleby Magna Parish Council,A000060,26/04/2017,1344632,8500,Precept,PARISH PRECEPT
North West Leicestershire District Council,31UH,Finance,Financial Planning,FINPLA,Ashby De La Zouch Town Council,A000091,26/04/2017,1344633,211327,Precept,PARISH PRECEPT
North West Leicestershire District Council,31UH,Finance,Financial Planning,FINPLA,Ashby Woulds Town Council,A000089,26/04/2017,1344634,53949.5,Precept,PARISH PRECEPT
North West Leicestershire District Council,31UH,Finance,Financial Planning,FINPLA,Belton Parish Council,A000164,26/04/2017,1344635,10570,Precept,PARISH PRECEPT
North West Leicestershire District Council,31UH,Finance,Financial Planning,FINPLA,Breedon On The Hill Parish Council,A000215,26/04/2017,1344636,10937.5,Precept,PARISH PRECEPT
North West Leicestershire District Council,31UH,Finance,Financial Planning,FINPLA,Castle Donington Parish Council,A000300,26/04/2017,1344637,150774.5,Precept,PARISH PRECEPT
North West Leicestershire District Council,31UH,Finance,Financial Planning,FINPLA,Coleorton Parish Council,A000382,26/04/2017,1344639,7266.5,Precept,PARISH PRECEPT
North West Leicestershire District Council,31UH,Finance,Financial Planning,FINPLA,Ellistown And Battleflat Parish Council,A021576,26/04/2017,1344640,31250,Precept,PARISH PRECEPT
North West Leicestershire District Council,31UH,Finance,Financial Planning,FINPLA,Heather Parish Council,A000749,26/04/2017,1344641,6250,Precept,PARISH PRECEPT
North West Leicestershire District Council,31UH,Finance,Financial Planning,FINPLA,Ibstock Parish Council,A000807,26/04/2017,1344642,103174.5,Precept,PARISH PRECEPT
North West Leicestershire District Council,31UH,Finance,Financial Planning,FINPLA,Kegworth Parish Council,A000882,26/04/2017,1344644,52937,Precept,PARISH PRECEPT
North West Leicestershire District Council,31UH,Finance,Financial Planning,FINPLA,Lockington Cum Hemington PC,A000999,26/04/2017,1344645,4673,Precept,PARISH PRECEPT
North West Leicestershire District Council,31UH,Finance,Financial Planning,FINPLA,Long Whatton & Diseworth PC,A001010,26/04/2017,1344646,19297,Precept,PARISH PRECEPT
North West Leicestershire District Council,31UH,Finance,Financial Planning,FINPLA,Measham Parish Council,A001082,26/04/2017,1344647,56331.5,Precept,PARISH PRECEPT
North West Leicestershire District Council,31UH,Finance,Financial Planning,FINPLA,"Oakthorpe, Donisthorpe & Acresford Parish Council",A001234,26/04/2017,1344648,25000,Precept,PARISH PRECEPT
North West Leicestershire District Council,31UH,Finance,Financial Planning,FINPLA,Osgathorpe Parish Council,A001251,26/04/2017,1344649,1982.5,Precept,PARISH PRECEPT
North West Leicestershire District Council,31UH,Finance,Financial Planning,FINPLA,Packington Parish Council,A001257,26/04/2017,1344650,9819,Precept,PARISH PRECEPT
North West Leicestershire District Council,31UH,Finance,Financial Planning,FINPLA,Ravenstone With Snibston PC,A001364,26/04/2017,1344651,26708.5,Precept,PARISH PRECEPT
North West Leicestershire District Council,31UH,Finance,Financial Planning,FINPLA,Snarestone Parish Council,A001524,26/04/2017,1344652,3088,Precept,PARISH PRECEPT
North West Leicestershire District Council,31UH,Finance,Financial Planning,FINPLA,Swannington Parish Council,A001608,26/04/2017,1344654,10643,Precept,PARISH PRECEPT
North West Leicestershire District Council,31UH,Finance,Financial Planning,FINPLA,Swepstone Parish Council,A001613,26/04/2017,1344655,8750,Precept,PARISH PRECEPT
North West Leicestershire District Council,31UH,Finance,Financial Planning,FINPLA,Whitwick Parish Council,A038617,26/04/2017,1344656,104619.5,Precept,PARISH PRECEPT
North West Leicestershire District Council,31UH,Finance,Financial Planning,FINPLA,Worthington Parish Council,A001813,26/04/2017,1344657,4842.5,Precept,PARISH PRECEPT
North West Leicestershire District Council,31UH,Leisure Centres,Hood Park Leisure Centre,HPLC,SwimBag Limited,A043973,26/04/2017,1344658,1235,Training Course/Conference,RLSS TRAINER ASSESSO
North West Leicestershire District Council,31UH,Street Management,Environment Waste Management,ENOWM,ESE World Limited,A001253,26/04/2017,1344663,2330.8,General Materials,6794845
North West Leicestershire District Council,31UH,Finance,Financial Planning,FINPLA,Kings Armoured Security Services Ltd,A004468,26/04/2017,1344666,1179.96,Cash Collection Services,112302
North West Leicestershire District Council,31UH,Housing Repairs,HRA Housing Repairs & Maintenance,HRAHRM,G Purchase Construction Ltd,A032830,26/04/2017,1344667,1209.73,Housing repairs,GP15/022925
North West Leicestershire District Council,31UH,Housing Repairs,HRA Housing Repairs & Maintenance,HRAHRM,G Purchase Construction Ltd,A032830,26/04/2017,1344684,720.2,Housing repairs,17040066
North West Leicestershire District Council,31UH,Housing Repairs,HRA Housing Repairs & Maintenance,HRAHRM,G Purchase Construction Ltd,A032830,26/04/2017,1344685,514.66,Housing repairs,17040070
North West Leicestershire District Council,31UH,Housing Repairs,HRA Housing Repairs & Maintenance,HRAHRM,G Purchase Construction Ltd,A032830,26/04/2017,1344686,565.47,Housing repairs,17040071
North West Leicestershire District Council,31UH,Housing Repairs,HRA Housing Repairs & Maintenance,HRAHRM,G Purchase Construction Ltd,A032830,26/04/2017,1344687,793.76,Housing repairs,17040073
North West Leicestershire District Council,31UH,Leisure Centres,Hood Park Leisure Centre,HPLC,T Denman & Sons (Melton Mowbray) Ltd,A030887,26/04/2017,1344695,2058.08,General Repairs,IN1555
North West Leicestershire District Council,31UH,Leisure Centres,Hermitage Leisure Centre,HLC,ESPO,A000958,26/04/2017,1344696,250.12,First Aid Equipment,4325336
North West Leicestershire District Council,31UH,Leisure Centres,Hermitage Bar & Catering,HLBC,LWC - Birmingham,A039915,26/04/2017,1344700,882.23,Bar Provisions,5851980
North West Leicestershire District Council,31UH,Legal & Democratic,Legal Services,LDLS,Thomson Reuters (Professional) UK Limited,A037595,26/04/2017,1344702,1072.35,Computing,12-514688
North West Leicestershire District Council,31UH,Housing,HRA Housing Management,HRAHM,Redacted- Personal Data,A043976,26/04/2017,1344704,1000,Under Occupancy Incentives,1ST DOWNSIZE
North West Leicestershire District Council,31UH,Environmental Health,Environmental Services,EES,College Garth Boarding Kennels,A000385,26/04/2017,1344705,2293.08,Stray Dog Service,1321
North West Leicestershire District Council,31UH,Property Services,Property Facilities Management,PROPFM,John Merison BMC Ltd,A001092,26/04/2017,1344707,8174.72,Asset Protection,3427
North West Leicestershire District Council,31UH,Environmental Health,Environmental Health & Licensing,EEHL,Euro RSCG People T/A Havas People Ltd,A001395,26/04/2017,1344708,337.81,Advertising,589780
North West Leicestershire District Council,31UH,Planning & Development,Environment - Development Control,EDC,Euro RSCG People T/A Havas People Ltd,A001395,26/04/2017,1344709,555.91,Advertising,589484
North West Leicestershire District Council,31UH,Planning & Development,Environment - Development Control,EDC,Euro RSCG People T/A Havas People Ltd,A001395,26/04/2017,1344712,888.03,Advertising,589783
North West Leicestershire District Council,31UH,Property Services,Property Commercial Lettings,PROPCL,Mather Jamie,A043015,26/04/2017,1344713,1869.11,Management Company Fees,15962
North West Leicestershire District Council,31UH,Property Services,Property Commercial Lettings,PROPCL,Mather Jamie,A043015,26/04/2017,1344714,1239.63,Management Company Fees,15966
North West Leicestershire District Council,31UH,Legal & Democratic,Legal Services,LDLS,Recognising Excellence Ltd,A040432,26/04/2017,1344717,750,Subscriptions,4662
North West Leicestershire District Council,31UH,Leisure Centres,Hermitage Leisure Centre,HLC,Severn Trent Water Limited,A001468,26/04/2017,1344718,1850.37,Water Charges (Metered),406002256
North West Leicestershire District Council,31UH,Legal & Democratic,Legal Services,LDLS,LexisNexis UK,A006155,26/04/2017,1344719,917.96,Books & Publications,DI354917G
North West Leicestershire District Council,31UH,Planning & Development,Environment - Development Control,EDC,Euro RSCG People T/A Havas People Ltd,A001395,26/04/2017,1344737,918.52,Advertising,589485
North West Leicestershire District Council,31UH,Information Technology,ICT Services,ICT,Capita Business Services Ltd,A002968,26/04/2017,1344738,459.9,Computing,6003538505
North West Leicestershire District Council,31UH,Street Management,Environment Waste Management,ENOWM,ESE World Limited,A001253,26/04/2017,1344739,399,General Materials,6795090
North West Leicestershire District Council,31UH,Street Management,Environment Transport,ENOT,Westbury Industrial Supplies Limited,A009933,26/04/2017,1344746,404.7,Protective Clothing,30420
North West Leicestershire District Council,31UH,Street Management,Environment Transport,ENOT,Second 2 None,A031408,26/04/2017,1344760,280,Vehicle Valeting,201703-1
North West Leicestershire District Council,31UH,Street Management,Environment Transport,ENOT,Post Office Limited,A008559,26/04/2017,1344762,5915,Licences - Road Fund Licence,ROAD FUND RENEWALS
North West Leicestershire District Council,31UH,Housing Repairs,HRA Housing Repairs & Maintenance,HRAHRM,Emperor Scaffolding Limited,A038405,26/04/2017,1344768,350,Hire Of Operational Equipment,11814
North West Leicestershire District Council,31UH,Housing Repairs,HRA Housing Repairs & Maintenance,HRAHRM,Emperor Scaffolding Limited,A038405,26/04/2017,1344769,350,Hire Of Operational Equipment,11805
North West Leicestershire District Council,31UH,Housing Repairs,HRA Housing Repairs & Maintenance,HRAHRM,Emperor Scaffolding Limited,A038405,26/04/2017,1344770,400,Hire Of Operational Equipment,11808
North West Leicestershire District Council,31UH,Housing Repairs,HRA Housing Repairs & Maintenance,HRAHRM,Emperor Scaffolding Limited,A038405,26/04/2017,1344771,550,Hire Of Operational Equipment,11811
North West Leicestershire District Council,31UH,Street Management,Environment Transport,ENOT,Ford Motor Company Ltd,A041004,26/04/2017,1344772,14968.55,Items To Be Leased,4184364
North West Leicestershire District Council,31UH,Street Management,Environment - Street Scene,ESS,Leicestershire County Council,A041837,26/04/2017,1344773,8867.47,Car Park Income,LR-LCC PARKING
North West Leicestershire District Council,31UH,Information Technology,ICT Services,ICT,Oracle Corporation UK Ltd.,A036174,26/04/2017,1344782,313.94,Software Licences,1592437
North West Leicestershire District Council,31UH,Information Technology,ICT Services,ICT,Dell Computer Corporation Ltd,A000470,26/04/2017,1344783,5207.66,Contract Payments (Other) Ext,7402357230
North West Leicestershire District Council,31UH,Housing,HRA Performance & Business Support,HRAPBS,Sturgis Snow & Astill LLP,A032635,26/04/2017,1344792,500,Legal & Professional Services,2790/4008
North West Leicestershire District Council,31UH,Planning & Development,Environment Community Planning,ECP,Solon Security,A035272,26/04/2017,1344795,460,Community Safety,SI17003235
North West Leicestershire District Council,31UH,Environmental Health,Environmental Health & Licensing,EEHL,Association Of Port Health Authorities,A000103,26/04/2017,1344797,1000,Subscriptions,2017/020
North West Leicestershire District Council,31UH,Housing,HRA Housing Management,HRAHM,Michael Dyson Associates Ltd,A028431,26/04/2017,1344801,896,Consultants Fees,3036
North West Leicestershire District Council,31UH,Housing Repairs,HRA Housing Repairs & Maintenance,HRAHRM,Cresswell Property Surveys,A022373,26/04/2017,1344802,890,Legal & Professional Services,3564
North West Leicestershire District Council,31UH,Finance,Financial Planning,FINPLA,Comensura Limited,A036958,26/04/2017,1344808,22116.18,Agency Staff,574302
North West Leicestershire District Council,31UH,Information Technology,ICT Services,ICT,Idox Software Ltd,A034157,26/04/2017,1344823,339,Administrative Equipment,7015266
North West Leicestershire District Council,31UH,Housing,HRA Performance & Business Support,HRAPBS,Taylor Bloxham Ltd,A037241,26/04/2017,1344824,847,Central Printing,122997
North West Leicestershire District Council,31UH,Housing Repairs,HRA Housing Repairs & Maintenance,HRAHRM,Severn Trent Water Limited,A043977,26/04/2017,1344827,847.31,Water Charges (Metered),109011197-0
North West Leicestershire District Council,31UH,Finance,Exchequer Services,EXCH,Total Gas & Power,A033385,25/04/2017,1344832,11755.35,Electricity,NWL2 FEB CONSUMPTION
North West Leicestershire District Council,31UH,Finance,Financial Planning,FINPLA,Royal Bank of Scotland Call A/c,A040451,25/04/2017,1344834,259000,Policy lending,DEPOSIT 30/3/17
North West Leicestershire District Council,31UH,Finance,Financial Planning,FINPLA,Scottish Widows Investment Partnerhiip,A039247,25/04/2017,1344836,3400000,Policy lending,4/4/17 SUBSCRIPTION
North West Leicestershire District Council,31UH,Finance,Exchequer Services,EXCH,Kings Armoured Security Services Ltd,A004468,26/04/2017,1344837,1501.24,Cash Collection Services,112986
North West Leicestershire District Council,31UH,Finance,Financial Planning,FINPLA,Goldman Sachs Money Market Fund,A039248,25/04/2017,1344838,2000000,Policy lending,"31/3,3/4.6/4 SUBS"
North West Leicestershire District Council,31UH,Finance,Financial Planning,FINPLA,Blackrock Cash Management,A039249,25/04/2017,1344839,4400000,Policy lending,10/4 & 18/4 SUBS
North West Leicestershire District Council,31UH,Finance,Financial Planning,FINPLA,Leicestershire County Council,A000950,25/04/2017,1344840,3805048,Precept,21ST APRIL 2017
North West Leicestershire District Council,31UH,Finance,Financial Planning,FINPLA,The Office of the Police and Crime Commissioner for Leicestershire,A007096,25/04/2017,1344841,608107.75,Precept,21ST APRIL 2017
North West Leicestershire District Council,31UH,Finance,Financial Planning,FINPLA,"Leicester, Leicestershire & Rutalnd Fire Service",A028339,25/04/2017,1344842,204100,Precept,21STB APRIL 2017
North West Leicestershire District Council,31UH,Street Management,Environment - Street Scene,ESS,Bankers Automated,A000133,25/04/2017,1344843,4981.07,Private Owners Car Park Income,OAKLANDS HOTEL LTD
North West Leicestershire District Council,31UH,Housing,HRA Performance & Business Support,HRAPBS,Voca Limited,A031344,25/04/2017,1344844,420,Computing,2166846
North West Leicestershire District Council,31UH,Housing,HRA Performance & Business Support,HRAPBS,TPAS Limited,A028863,26/04/2017,1344846,598,Training Course/Conference,58037
North West Leicestershire District Council,31UH,Legal & Democratic,Business Development Team,BDT,Apse,A018837,26/04/2017,1344847,2215,Subscriptions,1718/144
North West Leicestershire District Council,31UH,Information Technology,ICT Services,ICT,Virgin Media Business,A008908,26/04/2017,1344848,404.46,Admin Equipment - Maintenance,852179001001/0417
North West Leicestershire District Council,31UH,Finance,Financial Planning,FINPLA,Charley Parish Council,A000322,26/04/2017,1344921,2050.5,Precept,PRECEPT(1)2017/18
North West Leicestershire District Council,31UH,Finance,Financial Planning,FINPLA,Zurich Municipal,A001835,26/04/2017,1344924,172635.86,Insurances,10H083
North West Leicestershire District Council,31UH,Finance,Financial Planning,FINPLA,Zurich Municipal,A001835,26/04/2017,1344925,4597.9,Insurances,10H083
North West Leicestershire District Council,31UH,Leisure Centres,Hood Park Bar and Catering,HPBC,Tropicana Health and Fitness,A043758,26/04/2017,1344933,362.66,Catering Provisions,PRO FORMA 0000000422
North West Leicestershire District Council,31UH,Housing Repairs,HRA Housing Repairs & Maintenance,HRAHRM,Sure Maintenance Ltd,A040460,26/04/2017,1344934,11430,Plumbing & Heating,224831
North West Leicestershire District Council,31UH,Housing Repairs,HRA Housing Repairs & Maintenance,HRAHRM,Sure Maintenance Ltd,A040460,26/04/2017,1344935,3060,Plumbing & Heating,224832
North West Leicestershire District Council,31UH,Housing Repairs,HRA Housing Repairs & Maintenance,HRAHRM,Sure Maintenance Ltd,A040460,26/04/2017,1344936,19084.54,Plumbing & Heating,225310
North West Leicestershire District Council,31UH,Housing Repairs,HRA Housing Repairs & Maintenance,HRAHRM,Sure Maintenance Ltd,A040460,26/04/2017,1344937,2053.15,Plumbing & Heating,225311
North West Leicestershire District Council,31UH,Housing Repairs,HRA Housing Repairs & Maintenance,HRAHRM,Sure Maintenance Ltd,A040460,26/04/2017,1344938,750,Plumbing & Heating,224877
North West Leicestershire District Council,31UH,Housing Repairs,HRA Housing Repairs & Maintenance,HRAHRM,Severn Trent Water Limited,A043977,26/04/2017,1344939,586.69,Water Charges (Metered),421012883-8
North West Leicestershire District Council,31UH,Street Management,Environment Waste Management,ENOWM,Leicestershire County Council,A000950,26/04/2017,1344940,57163.33,Trade Refuse Disposal Costs,25726315
